Cogmind - Beta 17.1 @@@ ROGUE MODE // 2026.09.21 @ 23:42:36 Player: WayneKnight Result: Destroyed by D-53 Grenadier with Mini Grenade Launcher Performance ------------- Evolutions (2) 1000 Regions Visited (6) 1200 Robots Destroyed (108) 540 Value Destroyed (3250) 3250 Prototype IDs (11) 220 Alien Tech Used (0) 0 Bonus (128) 128 TOTAL SCORE: 6338 Bonus ------- High Alert Combat Kills 93 Follower Combat Kills 35 Cogmind --------- Core Integrity 0/550 Matter 276/300 Energy 500/500 System Corruption 6% Temperature Cool (20) Movement Treading (163) Location -8/Recycling Parts ------- > --- POWER (1) -------- F-cell Engine > --- PROPULSION (3) --- Light Treads Light Treads Armored Treads > --- UTILITY (5) ------ Large Storage Unit Visual Processing Unit Targeting Computer Light Armor Plating > --- WEAPON (2) ------- Enhanced Autogun Enhanced Autogun (fused) > --- INVENTORY (15) --- Improved Ion Engine Light Treads Light Treads Maxwheels Airjet Improved Sensor Array Hacking Suite Splice Drone Bay (3/6) Enhanced Autogun Enhanced Autogun Enhanced Autogun Mini Grenade Launcher Peak State ------------ > --- POWER ------------ Light Ion Engine > --- PROPULSION ------- Improved Carbon-fiber Leg Improved Carbon-fiber Leg Improved Carbon-fiber Leg > --- UTILITY ---------- Large Storage Unit Visual Processing Unit Transmission Jammer Medium Armor Plating Splice Drone Bay > --- WEAPON ----------- Improved EM Shotgun Subdweller Machine Gun > --- INVENTORY -------- Aluminum Leg Titanium Leg Improved Carbon-fiber Leg Maxwheels Airjet Large Storage Unit Medium Laser Medium Laser Light Assault Rifle Light Assault Rifle Battle Cannon Grenade Launcher [Rating: 39] Favorites ----------- Power Ion Engine Engine Ion Engine Propulsion Light Treads Treads Light Treads Leg Improved Carbon-fiber Leg Hover Unit Airjet Utility Large Storage Unit Device Heat Sink Storage Large Storage Unit Processor Visual Processing Unit Hackware Hacking Suite Protection Light Armor Plating Weapon Enhanced Autogun Energy Gun Medium Laser Ballistic Gun Enhanced Autogun Ballistic Cannon Battle Cannon Launcher Grenade Launcher Build | -11 -10 -10 -10 -8 -8 -8 ------- Run | Yrd Mat Min Sub Mat Sto Rec Slots Evolved 4 | . . . . 4 . . Power . | . . . . . . . Propulsion 1 | . . . . 1 . . Utility 3 | . . . . 3 . . Weapon . | . . . . . . . Parts Attached 71 | 2 4 . 9 32 24 . Power 7 | . . . 1 4 2 . Engine 7 | . . . 1 4 2 . Core . | . . . . . . . Reactor . | . . . . . . . Propulsion 23 | 2 . . 1 7 13 . Treads 15 | 2 . . 1 1 11 . Leg 7 | . . . . 6 1 . Wheel . | . . . . . . . Hover 1 | . . . . . 1 . Flight . | . . . . . . . Utility 20 | . 2 . 2 12 4 . Device 6 | . . . . 6 . . Storage 2 | . 1 . . 1 . . Processor 4 | . . . 1 2 1 . Hackware 1 | . . . . 1 . . Protection 7 | . 1 . 1 2 3 . Artifact . | . . . . . . . Weapon 21 | . 2 . 5 9 5 . Energy Gun 7 | . 2 . . 5 . . Energy Cannon . | . . . . . . . Ballistic Gun 10 | . . . 2 3 5 . Ballistic Cannon 3 | . . . 2 1 . . Launcher 1 | . . . 1 . . . Special Weapon . | . . . . . . . Impact Weapon . | . . . . . . . Slashing Weapon . | . . . . . . . Piercing Weapon . | . . . . . . . Special Melee Weapon . | . . . . . . . Unidentified Prototypes 8 | . . . . 6 2 . Parts Lost 17 | . . . 3 10 3 1 Power 3 | . . . 1 1 1 . Propulsion 6 | . . . . 5 1 . Utility 5 | . . . 2 2 . 1 Weapon 3 | . . . . 2 1 . Highest Loss Streak 4 | . . . 2 4 1 1 To Critical Strikes . | . . . . . . . Average Backups 12 | 6 10 15 13 11 11 12 Power . | 1 1 1 . . 1 1 Propulsion 3 | 4 3 3 3 3 3 4 Utility 2 | . 1 3 2 1 2 3 Weapon 5 | 1 5 7 6 4 4 4 Tool/Special . | . . . . . . . Unused Backups 29 | . 5 1 5 6 3 9 Power 3 | . 1 . 1 . . 1 Propulsion 6 | . 2 . 1 . . 3 Utility 2 | . 1 . . . . 1 Weapon 18 | . 1 1 3 6 3 4 Tool/Special . | . . . . . . . Average Slot Usage (%) 96 | . 97 100 99 93 96 100 Engine 11 | . 14 14 14 8 8 9 Treads 20 | . 27 28 28 5 23 27 Leg 6 | . . . . 18 3 . Device 4 | . . . . 11 6 . Storage 11 | . 14 14 14 9 9 9 Processor 8 | . . . 5 10 12 18 Hackware 3 | . . . . 4 9 9 Protection 8 | . 11 14 7 5 5 9 Energy Gun 6 | . 13 14 5 8 . . Ballistic Gun 13 | . 14 14 13 7 17 18 Ballistic Cannon 2 | . . . 8 1 . . Peak Build Rating 39 | 6 8 9 16 39 39 33 Average Rating 22 | 6 7 8 12 32 29 32 On Entrance 15 | 6 6 8 9 16 29 33 Avg Prop Armor Cover (%) 5 | . . . . . 5 . Naked Turns . | . . . . . . . Heaviest Build 47 | 14 32 32 33 47 46 41 Greatest Support 60 | 40 40 40 40 60 60 60 Greatest Overweight (x) 2 | . . . . 2 1 . Average Overweight (x) . | . . . . . . . Largest Inventory Capacity 15 | 8 15 15 15 15 15 15 Average Capacity 14 | 8 12 15 15 15 15 15 Most Carried 15 | 6 15 15 15 15 15 15 Average Carried 13 | 6 10 15 14 14 14 15 Final Capacity 15 | 8 15 15 15 15 15 15 Final Carried 15 | 6 15 15 15 12 15 15 Class Distribution -------------------- 76% | Mutant 23% | Scavenger-Mutant Dominant Class ---------------- Mutant | -10/Materials Mutant | -10/Mines Mutant | -10/Subcaves Mutant | -8/Materials Scavenger-Mutant | -8/Storage Scavenger-Mutant | -8/Recycling Resources | -11 -10 -10 -10 -8 -8 -8 ----------- Run | Yrd Mat Min Sub Mat Sto Rec Matter Collected 2841 | 200 207 65 309 925 869 266 Remotely . | . . . . . . . Salvage Created 3821 | . 448 150 229 1790 1007 197 Parts 219 | . 24 9 18 92 67 9 Haulers Intercepted 6 | . 2 . . 3 1 . Recyclers Shooed 3 | . . . . 3 . . Parts Field Recycled . | . . . . . . . Retrieved Matter . | . . . . . . . Parts Self-Destructed 16 | . . . 16 . . . Prevented . | . . . . . . . Parts Restored . | . . . . . . . Kills | -11 -10 -10 -10 -8 -8 -8 ------- Run | Yrd Mat Min Sub Mat Sto Rec Combat Hostiles Destroyed 87 | . 11 5 9 37 21 4 Guns 74 | . 11 5 5 28 21 4 Cannons 10 | . . . 2 8 . . AOE 3 | . . . 2 1 . . Classes Destroyed 12 | . 5 . 2 3 1 1 Builder 3 | . . . . 2 1 . Hauler 6 | . 2 . . 3 1 . Recycler 6 | . 1 1 . 3 1 . Operator 1 | . . . . 1 . . Watcher 5 | . 2 . . 2 1 . Swarmer 26 | . 9 5 1 8 3 . Grunt 27 | . 2 . . 20 5 . Brawler 1 | . . . . . 1 . Sentry 21 | . . . 1 8 12 . Programmer 1 | . . . . . . 1 Heavy 1 | . . . . 1 . . Subdweller 10 | . . . 7 . . 3 Best Kill Streak 10 | . 4 3 3 10 7 1 Combat Bots Only 6 | . 3 3 3 6 3 1 Max Kills in Single Turn 3 | . 2 2 1 3 2 1 Gunslinging 1 | . . 1 . . . . Exploded 1 | . . . 1 1 . . Melee . | . . . . . . . Uniques/NPCs Destroyed . | . . . . . . . Combat | -11 -10 -10 -10 -8 -8 -8 -------- Run | Yrd Mat Min Sub Mat Sto Rec Hostile Shots Fired 409 | . 46 18 54 156 121 14 Missed 118 | . 11 1 22 48 34 2 Hits 291 | . 35 17 32 108 87 12 Melee 3 | . . . . . 3 . Projectile 288 | . 35 17 32 108 84 12 AOE 4 | . . . . . . 4 Critical Strikes 11 | . . . . 8 3 . Actively Blocked 1 | . . . 1 . . . Damage Taken 4381 | . 282 127 654 1726 1295 297 Core 727 | . 6 15 117 294 194 101 Absorbed by Shields . | . . . . . . . Redirected to Shielding 53 | . . . 53 . . . Regen/Repaired (Parts) 294 | . 92 . . 98 104 . Core Remaining (%) 72 | 100 . . 44 . . . Volleys Fired 282 | . 48 10 32 105 75 12 Largest 2 | . 2 2 2 2 2 2 Hottest 117 | . 70 70 73 117 50 50 Shots Fired 552 | . 93 19 61 203 150 26 Gun 494 | . 93 19 37 169 150 26 Cannon 51 | . . . 17 34 . . Launcher 7 | . . . 7 . . . Special . | . . . . . . . Kinetic 392 | . 48 9 45 114 150 26 Thermal 135 | . 43 10 9 73 . . Explosive 7 | . . . 7 . . . Electromagnetic 18 | . 2 . . 16 . . Robot Hit Streak 23 | . 8 3 18 23 13 16 Robot Miss Streak 9 | . 5 3 1 9 5 1 Penetration Max . | . . . . . . . Secondary Targets 7 | . . 3 . 2 2 . Max Gunslinging Chain 1 | . . 1 . 1 1 . Shots Hit Robots 394 | . 52 9 43 157 113 20 Core Hits 215 | . 22 5 19 112 49 8 Critical Kills 1 | . . . . 1 . . Critical Parts Destroyed . | . . . . . . . Critical Strikes 5 | . 1 . 3 1 . . Burn 3 | . 1 . 2 . . . Destroy 1 | . . . . 1 . . Blast 1 | . . . 1 . . . Melee Attacks . | . . . . . . . Impact . | . . . . . . . Slashing . | . . . . . . . Piercing . | . . . . . . . Sneak Attacks . | . . . . . . . Combat Hostiles . | . . . . . . . Follow-up Attacks . | . . . . . . . Damage Inflicted 8462 | . 723 139 975 3859 2418 348 Guns 6743 | . 723 126 449 2788 2309 348 Cannons 836 | . . . 257 579 . . Explosions 836 | . . . 269 473 94 . Melee . | . . . . . . . Ramming 47 | . . 13 . 19 15 . Kinetic 5314 | . 398 59 606 1594 2309 348 Thermal 1995 | . 310 67 100 1518 . . Explosive 798 | . . . 269 435 94 . Electromagnetic 308 | . 15 . . 293 . . Impact . | . . . . . . . Slashing . | . . . . . . . Piercing . | . . . . . . . Highest Corruption 6 | . 5 5 5 6 6 6 Average Corruption 5 | . 2 5 5 5 6 6 Corruption Purged . | . . . . . . . Corruption Blocked . | . . . . . . . Effects 197 | . 5 27 36 49 56 24 Message Errors 42 | . 1 2 10 12 13 4 Matter Fused 51 | . . 7 9 11 19 5 Heat Flow Errors 23 | . 1 5 5 6 5 1 Energy Discharges 24 | . . 5 3 4 5 7 Parts Rejected 2 | . . . . 1 1 . Parts Fused 2 | . . . . 1 1 . Data Loss (minor) 21 | . . 2 4 8 3 4 Data Loss (major) 12 | . 2 1 1 4 4 . Misfires 11 | . . 1 4 2 2 2 Alerts 5 | . 1 2 . . 1 1 Weapon Failures 4 | . . 2 . . 2 . Overload Shots . | . . . . . . . Overflow Damage 109 | . . . . 88 21 . Projectiles . | . . . . . . . Explosions 109 | . . . . 88 21 . Melee . | . . . . . . . Knockbacks 25 | . . . 5 20 . . Impact . | . . . . . . . Kinetic 25 | . . . 5 20 . . Secondary . | . . . . . . . Self-Inflicted Damage 153 | . . . 3 107 43 . Shots 3 | . . . 1 1 1 . Rammed 1 | . . . . . 1 . Targets Rammed 4 | . . 1 . 2 1 . Kicked 2 | . . . . 2 . . Crushed 1 | . . 1 . . . . Highest Temperature 271 | . 271 251 229 251 202 93 Average Temperature 60 | . 49 85 97 63 39 17 Received Heat Transfer 1509 | . 12 . 174 747 576 . Effects 3 | . 1 2 . . . . Energy Bleed 1 | . 1 . . . . . Interference 2 | . . 2 . . . . Siege Activations . | . . . . . . . Martial Activations . | . . . . . . . Shielding Activations . | . . . . . . . Robots Disrupted . | . . . . . . . Combat Hostiles . | . . . . . . . Robots Corrupted . | . . . . . . . Combat Hostiles . | . . . . . . . Parts Fried 2 | . . . . 2 . . Impact Corruptions . | . . . . . . . Robots Melted . | . . . . . . . Combat Hostiles . | . . . . . . . Parts Melted 10 | . 3 1 . 5 . 1 Heat Transferred 4791 | . 843 185 444 3319 . . Parts Sabotaged . | . . . . . . . Parts Stolen . | . . . . . . . Parts Stripped . | . . . . . . . Power Chain Reactions 1 | . . . . 1 . . Alert | -11 -10 -10 -10 -8 -8 -8 ------- Run | Yrd Mat Min Sub Mat Sto Rec Maximum Alert Level 2 | . . . . 2 2 . Low Security (%) 78 | 100 100 100 . 68 53 100 Level 1 18 | . . . . 27 36 . Level 2 3 | . . . . 3 10 . Level 3 . | . . . . . . . Level 4 . | . . . . . . . Level 5 . | . . . . . . . High Security . | . . . . . . . Max Security . | . . . . . . . Peak Influence 563 | . 137 95 . 563 441 37 Initial 237 | . . 9 . . 237 6 Average 90 | . 43 15 . 121 160 2 Influence Increases 2562 | . 361 140 70 1232 682 77 Destroy 0b10 Robot/C 1560 | . 220 100 40 760 420 20 Destroy 0b10 Robot/NC 110 | . 25 5 . 55 20 5 Destroy Leader 402 | . 48 20 . 180 154 . Allied During Kill 2 | . . . . 2 . . Successful Hack 99 | . 23 . . 41 28 7 Select Force Hacks 60 | . 30 . . . . 30 Disable Machine 75 | . . . . 30 30 15 Destroy Structure 44 | . . . . 29 15 . Partial Spotted 15 | . . . . . 15 . Lose Combat Pursuer 195 | . 15 15 30 135 . . Influence Decreases 2542 | . 337 164 70 669 1227 75 Entered New Map 353 | . . 15 . . 326 12 Time Decay 1523 | . 337 149 70 363 551 53 Lost Part 140 | . . . . 100 30 10 Lost Ally 76 | . . . . 56 20 . Purge Threat 450 | . . . . 150 300 . Squads Dispatched 9 | . 1 . . 7 1 . Investigation 3 | . 1 . . 2 . . Extermination . | . . . . . . . Reinforcement 5 | . . . . 4 1 . Assault . | . . . . . . . Garrison 1 | . . . . 1 . . Intercept . | . . . . . . . Searches Triggered . | . . . . . . . Construction Impeded . | . . . . . . . Haulers Reinforced . | . . . . . . . Active Scanning Responses . | . . . . . . . Cargo Convoy Interrupts . | . . . . . . . Stealth | -11 -10 -10 -10 -8 -8 -8 --------- Run | Yrd Mat Min Sub Mat Sto Rec Distress Signals 7 | . . . . 4 2 1 Communications Jammed . | . . . . . . . Distress Signals . | . . . . . . . Times Spotted 129 | . 19 6 11 59 28 6 Peak Tracking Total 7 | . 3 3 3 7 6 2 Tactical Retreats 13 | . 1 1 1 8 . 2 Traps | -11 -10 -10 -10 -8 -8 -8 ------- Run | Yrd Mat Min Sub Mat Sto Rec Traps Triggered 6 | . 3 . 1 2 . . Indirectly . | . . . . . . . Trap Hack Attempts . | . . . . . . . Triggered . | . . . . . . . Disarmed . | . . . . . . . Reprogrammed . | . . . . . . . Reused . | . . . . . . . Traps Extracted . | . . . . . . . Installed . | . . . . . . . Triggered . | . . . . . . . Machines | -11 -10 -10 -10 -8 -8 -8 ---------- Run | Yrd Mat Min Sub Mat Sto Rec Machines Disabled 5 | . . . . 2 2 1 Max in Single Turn 2 | . . . . 2 1 1 Garrison Access 1 | . . . . . 1 . Machines Repaired . | . . . . . . . Machines Dismantled . | . . . . . . . Machines Sabotaged . | . . . . . . . Overloaded Fab Kills . | . . . . . . . Hacking | -11 -10 -10 -10 -8 -8 -8 --------- Run | Yrd Mat Min Sub Mat Sto Rec Machines Accessed 44 | . 8 1 3 11 14 7 Terminals 32 | . 6 . . 8 12 6 Fabricators . | . . . . . . . Repair Stations 3 | . 1 . . 1 1 . Recycling Units 2 | . 1 . . . . 1 Scanalyzers 1 | . . . . 1 . . Garrison Access 2 | . . . . 1 1 . Total Hacks 110 | . 26 1 7 33 32 11 Successful 76 | . 15 1 7 20 26 7 Failed 33 | . 10 . . 13 6 4 Catastrophic 5 | . 1 . . 1 1 2 Database Lockouts 1 | . 1 . . . . . Manual 47 | . 10 . 1 17 13 6 Terminals 82 | . 19 . . 24 29 10 Fabricators . | . . . . . . . Repair Stations 10 | . 6 . . 2 2 . Recycling Units 2 | . 1 . . . . 1 Scanalyzers 5 | . . . . 5 . . Garrison Access 3 | . . . . 2 1 . Terminal Hacks 44 | . 6 1 7 8 19 3 Record 7 | . 1 . 5 . . 1 Part Schematic 1 | . . . . . 1 . Robot Analysis 7 | . 3 . . 2 2 . Prototype ID Bank 2 | . . . . . 2 . Open Door 7 | . . 1 1 . 5 . Level Access Points 1 | . . . . . . 1 Branch Access Points 2 | . . . . 1 1 . Terminal Index 1 | . . . . . . 1 Alert Level 4 | . . . . 2 2 . Unreport Threat 3 | . . . . 1 2 . Locate Traps 7 | . 2 . . 2 3 . Zone Layout 1 | . . . . . 1 . Release Object 1 | . . . 1 . . . Fabricator Hacks . | . . . . . . . Repair Station Hacks 10 | . 6 . . 2 2 . Scan Component 5 | . 3 . . 1 1 . Repair 5 | . 3 . . 1 1 . Recycling Unit Hacks . | . . . . . . . Scanalyzer 5 | . . . . 5 . . Insert Component 1 | . . . . 1 . . Analyze 2 | . . . . 2 . . Retrieve Study 2 | . . . . 2 . . Garrison Access Hacks 1 | . . . . . 1 . Seal Access 1 | . . . . . 1 . Unauthorized Hacks 16 | . 3 . . 5 4 4 Terminals 14 | . 2 . . 5 4 3 Track 3 | . . . . 1 1 1 Botnet 9 | . 2 . . 3 2 2 Operators 2 | . . . . 1 1 . Fabricators . | . . . . . . . Repair Stations . | . . . . . . . Recycling Units 2 | . 1 . . . . 1 Tunnel 2 | . 1 . . . . 1 Scanalyzers . | . . . . . . . Garrison Access . | . . . . . . . Data Cores Recovered . | . . . . . . . Used . | . . . . . . . Hacking Detections 30 | . 5 . . 9 11 5 Full Trace Events 1 | . . . . 1 . . Feedback Events . | . . . . . . . Feedback Blocked . | . . . . . . . Robot Schematics Acquired . | . . . . . . . Robots Built . | . . . . . . . Authchips . | . . . . . . . Time . | . . . . . . . Total Robot Build Rating . | . . . . . . . Part Schematics Acquired 2 | . . . . 1 1 . Parts Built . | . . . . . . . Authchips . | . . . . . . . Time . | . . . . . . . Total Part Build Rating . | . . . . . . . Part Studies Acquired 1 | . . . . 1 . . Parts Repaired 5 | . 3 . . 1 1 . Time 148 | . 78 . . 32 38 . Parts Recycled . | . . . . . . . Recycled Matter . | . . . . . . . Retrieved Matter . | . . . . . . . Retrieved Components . | . . . . . . . Parts Scanalyzed 1 | . . . . 1 . . Part Schematics Acquired 1 | . . . . 1 . . Parts Damaged . | . . . . . . . Bothacking | -11 -10 -10 -10 -8 -8 -8 ------------ Run | Yrd Mat Min Sub Mat Sto Rec Used RIF Installer . | . . . . . . . Robots Hacked . | . . . . . . . Non-combat . | . . . . . . . Combat . | . . . . . . . Robot Hacks Applied . | . . . . . . . Relay Couplers Released . | . . . . . . . Fabnet Peak Effective % . | . . . . . . . Robots Rewired . | . . . . . . . Allies Hacked . | . . . . . . . Hacks Repelled . | . . . . . . . Allies | -11 -10 -10 -10 -8 -8 -8 -------- Run | Yrd Mat Min Sub Mat Sto Rec Total Allies 3 | . . . . 3 . . Largest Group 1 | . . . . 1 . . Highest-Rated Group 29 | . . . . 29 . . Highest-Rated Ally 29 | . . . . 29 . . Total Orders 13 | . . . . 11 2 . EXPLORE 13 | . . . . 11 2 . Ally Attacks 16 | . . . . 15 1 . Total Damage 100 | . . . . 96 4 . Kills 1 | . . . . 1 . . Allies Corrupted . | . . . . . . . Allies Melted . | . . . . . . . Intel | -11 -10 -10 -10 -8 -8 -8 ------- Run | Yrd Mat Min Sub Mat Sto Rec Active Infowar (turns) 6178 | . . . 693 2950 1701 834 Optics 6178 | . . . 693 2950 1701 834 Sensors 523 | . . . . 523 . . Jamming 1 | . . . . 1 . . Robot Analysis Total 6 | . 3 . . 2 1 . Derelict Logs Recovered 1 | . . 1 . . . . Drone Launches 14 | . . . . 12 2 . Drone Recoveries 11 | . . . . 10 1 . Exploration | -11 -10 -10 -10 -8 -8 -8 ------------- Run | Yrd Mat Min Sub Mat Sto Rec Turns Passed 9458 | 3 1412 922 1636 2950 1701 834 Spaces Moved 4548 | 1 686 551 939 1230 648 493 Core . | . . . . . . . Treads 3376 | 1 686 551 939 127 579 493 Legs 1172 | . . . . 1103 69 . Wheels . | . . . . . . . Hover . | . . . . . . . Flight . | . . . . . . . Fastest Speed 120 | 160 160 160 160 120 123 163 Average Speed 151 | 160 160 160 160 129 157 163 Slowest Speed 260 | 160 160 160 160 260 240 163 Overloaded Moves . | . . . . . . . Propulsion Burnouts . | . . . . . . . Robots Hopped . | . . . . . . . Potential Cave-ins . | . . . . . . . Cave-ins Triggered . | . . . . . . . Exploration Rate (%) 68 | 2 73 99 42 85 86 94 Regions Visited 6 Branch Regions 4 Pre-discovered Areas 3 | . 1 1 . . . 1 Known Exits Taken 3 | . . . 1 1 1 . Unknown Exits Taken 3 | 1 1 1 . . . . Scrap Searched 4 | . . 1 3 . . . Spaces Dug . | . . . . . . . Terrain Destroyed 62 | . . . 28 21 13 . Melee . | . . . . . . . Projectile 2 | . . . 1 1 . . AOE 60 | . . . 27 20 13 . Terrain Rammed . | . . . . . . . Walls Destroyed . | . . . . . . . Machines Disabled . | . . . . . . . Actions | -11 -10 -10 -10 -8 -8 -8 --------- Run | Yrd Mat Min Sub Mat Sto Rec Total 6598 | 2 907 571 1014 2376 1218 510 Wait 1566 | . 152 8 19 953 429 5 Move 4542 | . 685 550 938 1229 647 493 Hop . | . . . . . . . Pick Up 48 | . 11 1 3 21 12 . Fast Attach 31 | . 4 . 1 17 9 . Attach 14 | . . . 3 8 3 . Detach 7 | . . . 1 2 4 . Swap 41 | 2 3 . 9 13 14 . Drop 62 | . 4 1 7 26 24 . Fire 282 | . 48 10 32 105 75 12 Melee . | . . . . . . . Ram . | . . . . . . . Kick 2 | . . . . 2 . . Crush 2 | . . 1 . . 1 . Escape Stasis . | . . . . . . . Rewire . | . . . . . . . Trap . | . . . . . . . Miscellaneous 1 | . . . 1 . . . Route ------- -11/Scrapyard -10/Materials (discovered 4 exits: [*Mat x2] / *Min / *Sub) -10/Mines (discovered 3 exits: [*Mat x2] / *Sub) -10/Subcaves (discovered 3 exits: *Mat x2 / Rec) -8/Materials (discovered 4 exits: [*Fac x2] / *Sto x2) -8/Storage -8/Recycling (discovered 1 exit: *Fac) History --------- Turn | Location | Event 4 | -11/Scrapyard | Discovered new exit (range 0) 4 | -11/Scrapyard | Entered Materials 55 | -10/Materials | Central database locked down 301 | -10/Materials | Build established: Mutant 954 | -10/Materials | Discovered new exit (range 11) 1041 | -10/Materials | Repaired Lgt. Treads 1068 | -10/Materials | Repaired Lgt. Armor Plating 1096 | -10/Materials | Repaired Med. Laser 1157 | -10/Materials | Discovered new exit (range 9) 1230 | -10/Materials | Discovered new exit (range 9) 1306 | -10/Materials | Discovered new exit (range 6) 1416 | -10/Materials | Entered Mines 1465 | -10/Mines | Met a Derelict bent on vengeance 1629 | -10/Mines | Discovered new exit (range 9) 1731 | -10/Mines | Found the Drone Emporium 1741 | -10/Mines | Found Prototype Device 2115 | -10/Mines | Learned location of Recycling (-8) 2130 | -10/Mines | Discovered new exit (range 6) 2202 | -10/Mines | Discovered new exit (range 6) 2338 | -10/Mines | Entered Subcaves 2339 | -10/Subcaves | Approached by a straggling Scientist 2420 | -10/Subcaves | Shifting Twisted Machinery released Piercing Trap 2424 | -10/Subcaves | Shifting Twisted Machinery released Sub. Power Source 2474 | -10/Subcaves | Shifting Twisted Machinery released Sub. Laser 2584 | -10/Subcaves | Discovered new exit (range 16) 2873 | -10/Subcaves | Disturbed a concealed Subdweller 3378 | -10/Subcaves | A Subdweller sparked back to life 3378 | -10/Subcaves | A Subdweller sparked back to life 3378 | -10/Subcaves | A Subdweller sparked back to life 3419 | -10/Subcaves | Found Prototype Wheel 3484 | -10/Subcaves | Core integrity fell below 50% 3531 | -10/Subcaves | Visited Clippyterm 3536 | -10/Subcaves | Identified exit to Recycling 3536 | -10/Subcaves | Identified exit to Materials 3765 | -10/Subcaves | Released subatomizers from SUBCON Basin 3974 | -10/Subcaves | Entered Materials 3974 | -8/Materials | Evolved 4 slots: Propulsion x1, Utility x3 4010 | -8/Materials | Identified Splice Drone Bay 5106 | -8/Materials | Lost 3 allies 5362 | -8/Materials | Discovered new exit (range 11) 5634 | -8/Materials | Repaired Med. Armor Plating 5842 | -8/Materials | Discovered new exit (range 10) 6151 | -8/Materials | Garrison activated, responded to threat 6254 | -8/Materials | Identified exit to Storage 6863 | -8/Materials | Core integrity fell below 50% 6893 | -8/Materials | Lost 4 parts (2n1u1w) 6924 | -8/Materials | Entered Storage 7462 | -8/Storage | Build established: Scavenger-Mutant 7473 | -8/Storage | Core integrity fell below 20% 7766 | -8/Storage | Repaired Hpw. Shotgun 8127 | -8/Storage | Used back door to open Recycling access 8625 | -8/Storage | Entered Recycling 8626 | -8/Recycling | Met a Zionite searching for Scraptown 9048 | -8/Recycling | Discovered new exit (range 18) 9337 | -8/Recycling | Identified exit to Factory 9459 | -8/Recycling | Destroyed by D-53 Grenadier with Mini Grenade Launcher Last Messages --------------- potential for abuse. 09369_ System corrupted: Energy discharge (-140). 09402_ System corrupted: FCS attempts to trigger Enh. Autogun. 09402_ System corrupted: Enh. Autogun misfires. 09402_ Purification Channel disabled. 09408_ Connecting with Recycling Unit... >>Force(Tunnel) DISCOVERED[-1/Access] 09429_ System corrupted: Component data lost. 09453_ D-53 Grenadier springs to life. 09453_ H-55 Commando destroyed. 09453_ I-25 Savior destroyed. 09453_ H-55 Commando springs to life. 09453_ Penetrated by Slug. 09453_ Hacking Suite destroyed. 09454_ T-07 Excavator destroyed. 09455_ P-60 Hacker destroyed. 09455_ G-47 Trooper destroyed. 09456_ Penetrated by Slug. 09457_ U-05 Engineer destroyed. Map ----- +----------------------------------------------------+ | ???# ""T"" ############ | | ???# # #?? | | ???# # """ #?? | | ???# + """ #?? | | ???# """" """" # """ #?? | | ???# """" """" # #?? | | ???# """" """" + #?? | | ???# """" """" # "T" ### | | ???# """" """" # """ + | | ???# # # | | ???# #####+#### | | ???# | | ???# ############+####### | | ???# # #??# T | | ???# # """ " " ""#??# | | ???# + """"""""" Y"#??# % | | ???# # """"" " ""#??# % | | ???# # #??# | | ???# ##############+##### | | ???# #????????????# | | ???# ###########??#* | | ?### # l! d####%= | | ?#! % !% h + !]!* [ | | ?#! ! ! ####%%! [*! | | ?# % ! #??#!######%### | | ?## @ == #??#/########?# | | ??# % k ! #??#[ # | | ?# = a% #??#%! ##] | | ?### % ii#??# #?? | | ???# # #########??# % """ #?? | | ???# ###??????????# & """""#?? | | ???# ????????????# """"#?? | | ???# #????????????# """""#?? | | ???# #????????????# """ #?? | | ?### #??####??????# #?? | | ?#"" ####T##########+##+###### | | ?#"Y =%| % # | | ?#"" !%! # | | ??## # | | ???# ## !!## %########+###### | | ???# ## !!## %%## ! #??? | | ???# ############ !!#??? | | ???# #??????????#! ! #??? | | ???# #??????????# ! ! ! #??? | | ???# ##?????????# ! #??? | | ???# #?????????# ! #??? | | ???# ##?????????# #??? | | ???# #??????????# ! #??? | | ???# #??????????###########??? | | ???# #???????????????????????? | +----------------------------------------------------+ Best States ------------- Heat Dissipation 41 Coolant Potential 65 Energy Generation 19 Energy Capacity 500 Matter Stores 300 Matter Capacity 300 Sight Range 18 Robot Scan Range 15 Terrain Scan Density 10 EM Shielding 2 Armor Coverage 225 Propulsion Shielding 33 Evasion (%) 55 Targeting Accuracy 5 Recoil Reduction 3 Offensive Hacking 10 Item Schematics ----------------- Airjet | -8/Materials | Scanalyzed Imp. Signal Interpreter | -8/Storage | Hacked Robot Schematics ------------------ None Fabricated ------------ Nothing Repaired ---------- Lgt. Treads | 73% | -10/Materials Lgt. Armor Plating | 68% | -10/Materials Med. Laser | 61% | -10/Materials Med. Armor Plating | 18% | -8/Materials Hpw. Shotgun | 16% | -8/Storage Studied --------- Airjet | -8/Materials | Hacked Alien Tech Used ----------------- None Achievements -------------- Factory Defaults Item+ Challenges ------------ None Game ------ Seed VortexImpactInterrupter Manual? 0 Play Time 01:20:24 Cumulative 73.5 hours Start 2026.09.21 @ 21:49:55 End 2026.09.21 @ 23:42:36 Sessions 1 Manual Loads 0 Difficulty Rogue Special Mode None Game No. 69 Rogue 69 Adventurer 0 Explorer 0 Win Type - Total 1 Types 0/0/1/0/0/0/0/0/0/0 Lore% 36 Gallery% 33 Achievement% 32 Wizard Run 0 Options --------- Layout 0 ASCII 1 Keyboard 1 Movement Arrows Keybinds 0 Fullscreen 2 Font 36/Terminus++ Map View 76x50 Zoom Use 0% Tactical HUD 1 Map Filters NONE Filters NONE Steam 1 RUN: be79f3ce-9020-403e-bf2f-0882a9e23731